[Event "Chinese Championship-B Men 2024"]
[Site "Liaocheng"]
[Date "2024.04.25"]
[Round "10.8"]
[White "Jiang, Haochen"]
[Black "Yang, ZiLong"]
[Result "1-0"]
[ECO "B14"]
[WhiteElo "2381"]
[BlackElo "1918"]
[Annotator "TA"]
[PlyCount "74"]
[EventDate "2024.04.24"]
[EventType "swiss"]
[EventCountry "CHN"]
[SourceTitle "playchess.com"]
[Source "ChessBase"]
[SourceQuality "1"]
[TimeControl "5400+30"]

{[%evp 14,74,23,24,26,24,16,10,29,33,61,60,65,73,78,70,106,104,118,98,106,95,154,152,235,217,319,246,297,293,281,282,283,193,579,578,754,736,1139,1101,1160,1141,1231,929,980,947,943,986,1004,983,1037,1013,1035,1031,1038,1011,1022,989,1366,1347,1313,1279,1225]} 1. d4 {[%emt 0:00:19]} Nf6 {[%emt 0:00:09]} 2. c4 {[%emt 0:00:11]} e6 {[%emt 0:00:07]} 3. Nc3 {[%emt 0:00:05]} c5 {[%emt 0:00:25]} 4. e3 {[%emt 0:00:41]} cxd4 {[%emt 0:00:23]} 5. exd4 {[%emt 0:00:02]} d5 {[%emt 0:00:05]} 6. Nf3 {[%emt 0:00:07]} Nc6 {[%emt 0:00:11]} 7. c5 {[%emt 0:00:06]} Be7 {[%emt 0:00:09]} 8. a3 {[%emt 0:01:18]} O-O {[%emt 0:07:57]} 9. b4 {[%emt 0:02:17][%cal Bb2b4,Bb4b5][%mdl 32]} Ne4 {[%emt 0:03:37]} 10. Bb2 {[%emt 0:00:52]} Bf6 {[%emt 0:01:35] The position is equal.} 11. b5 {[%emt 0:10:45]} Ne7 {[%emt 0:05:49]} 12. Bd3 {[%emt 0:05:48]} Nxc3 {[%emt 0:02:26]} 13. Bxc3 {[%emt 0:00:07]} Ng6 {[%emt 0:00:13] White now steadily converts the win.} 14. O-O {[%emt 0:01:37]} Bd7 {[%emt 0:01:11]} 15. Re1 {[%emt 0:04:18]} Re8 {[%emt 0:05:32]} 16. g3 {[%emt 0:12:44] White is more active.} Qc7 {[%emt 0:05:28]} 17. Rc1 {[%emt 0:04:21]} Rac8 {[%emt 0:08:49]} (17... a6 $142) 18. a4 {[%emt 0:11:54]} Be7 {[%emt 0:18:31]} (18... a6 $16 {was necessary.} 19. h4 (19. bxa6 Ra8 $16) 19... axb5) 19. h4 {[%emt 0:01:43][%cal Bh2h4,Bh4h5][%mdl 32]} Red8 {[%emt 0:09:33]} (19... Bf6 $142 20. h5 Nf8) 20. Bd2 {[%emt 0:07:52]} Be8 {[%emt 0:03:48]} 21. h5 {[%emt 0:04:08]} Nf8 {[%emt 0:00:15]} 22. Bf4 {[%emt 0:00:28]} Qa5 {[%emt 0:00:45]} 23. Nd2 {[%emt 0:01:54] [#] Strongly threatening Nb3.} e5 $2 {[%emt 0:04:59]} (23... Rd7 {is tougher.} 24. h6 Bf6) 24. Nb3 $18 {[%emt 0:02:48] White is clearly winning.} ({Less strong is} 24. dxe5 Rxc5 25. Rxc5 Bxc5 $16) 24... Qc7 {[%emt 0:01:16]} 25. Rxe5 {[%emt 0:01:12]} Qd7 {[%emt 0:03:14]} 26. Bf5 {[%emt 0:01:55]} Ne6 {[%emt 0:01:20]} 27. Qg4 {[%emt 0:00:17]} Kh8 {[%emt 0:08:03]} 28. Rxe6 {[%emt 0:00:31]} fxe6 {[%emt 0:00:15] Black is weak on the dark squares} 29. Bxe6 {[%emt 0:00:05]} Bxh5 {[%emt 0:02:03]} 30. Bxd7 {[%emt 0:00:14]} ({Weaker is} 30. Qxh5 Qxe6 31. Na5 Rd7 $16) 30... Bxg4 {[%emt 0:00:05]} 31. Bxg4 {[%emt 0:00:04]} Ra8 {[%emt 0:00:05]} 32. c6 {[%emt 0:00:07]} bxc6 {[%emt 0:00:20]} 33. bxc6 {[%emt 0:00:05]} h5 {[%emt 0:00:24]} 34. Bh3 {[%emt 0:00:57]} Ba3 {[%emt 0:02:38]} 35. Rc2 {[%emt 0:00:11]} Bd6 {[%emt 0:01:02]} 36. Bxd6 {[%emt 0:00:18]} Rxd6 {[%emt 0:00:47]} 37. c7 {[%emt 0:00:06]} Re8 {[%emt 0:01:59] Weighted Error Value: White=0.15 (very precise) /Black=0.52.  Mistake:       	---       	Black=4      Inaccurate:     	White=1     	Black=4      OK:         	White=6     	Black=4      Best:        	White=1     	---} 1-0

[Event "Chinese Championship-B Men 2024"]
[Site "Liaocheng"]
[Date "2024.04.25"]
[Round "10.9"]
[White "Jiang, Qinyu"]
[Black "Liu, Meng"]
[Result "1/2-1/2"]
[ECO "B90"]
[WhiteElo "2319"]
[BlackElo "1877"]
[Annotator "TA"]
[PlyCount "54"]
[EventDate "2024.04.24"]
[EventType "swiss"]
[EventCountry "CHN"]
[SourceTitle "playchess.com"]
[Source "ChessBase"]
[SourceQuality "1"]
[TimeControl "5400+30"]

{[%evp 15,54,29,25,33,25,27,27,28,35,37,37,43,53,18,32,34,24,24,31,37,40,30,20,21,12,17,22,14,33,29,27,35,34,-6,-8,-6,-14,-36,-29,-17,0]} 1. e4 {[%emt 0:00:00]} c5 {[%emt 0:00:42]} 2. Nf3 {[%emt 0:00:01]} d6 {[%emt 0:00:06]} 3. d4 {[%emt 0:00:01]} cxd4 {[%emt 0:00:01]} 4. Nxd4 {[%emt 0:00:00]} Nf6 {[%emt 0:00:11]} 5. Nc3 {[%emt 0:00:01]} a6 {[%emt 0:00:05]} 6. Be3 {[%emt 0:00:01]} e5 {[%emt 0:00:06]} 7. Nb3 {[%emt 0:00:00]} Be6 {[%emt 0:00:11]} 8. f3 {[%emt 0:00:01]} h5 {[%emt 0:00:08]} 9. Nd5 {[%emt 0:00:08]} Bxd5 {[%emt 0:01:34]} 10. exd5 {[%emt 0:00:01]} Nbd7 {[%emt 0:00:06]} 11. Qd2 {[%emt 0:00:01] White has an edge.} Qc7 {[%emt 0:00:06]} 12. O-O-O {[%emt 0:06:36]} g6 {[%emt 0:00:04]} 13. Kb1 {[%emt 0:00:15]} Bg7 {[%emt 0:00:07]} 14. Rg1 {[%emt 0:00:06]} (14. h3 $5) 14... O-O {[%emt 0:00:17]} 15. g4 {[%emt 0:00:07]} hxg4 {[%emt 0:01:37]} 16. fxg4 {[%emt 0:00:21]} Nb6 $1 {[%emt 0:00:21]} 17. Qa5 {[%emt 0:36:04]} Rfc8 {[%emt 0:06:11]} 18. c3 {[%emt 0:00:02] Active counter play!} Nc4 {[%emt 0:01:04]} 19. Qxc7 Rxc7 {[%emt 0:00:01]} 20. Bc1 {[%emt 0:00:02]} Nb6 {[%emt 0:22:07][%cal Oa8e8]} 21. Na5 {[%emt 0:06:04]} Re8 {[%emt 0:09:32]} (21... Nbxd5 $2 {is the wrong capture.} 22. g5 Nxc3+ 23. bxc3 $18) (21... Nfxd5 $5 22. Bg2 Nf4 $16) 22. c4 {[%emt 0:00:32]} Nfd7 {[%emt 0:03:48]} 23. g5 {[%emt 0:06:26]} e4 {[%emt 0:02:02]} 24. Be3 {[%emt 0:02:06]} Na4 {[%emt 0:02:22]} 25. Rg2 {[%emt 0:00:24]} Ne5 {[%emt 0:01:52]} 26. Rc2 {[%emt 0:01:26]} (26. Bf4 $5) 26... b6 {[%emt 0:10:33]} 27. Nb3 {[%emt 0:03:53]} Rec8 {[%emt 0:02:49] Weighted Error Value: White=0.07 (flawless) /Black=0.02 (flawless) .  Inaccurate:     	White=2     	---        OK:         	White=9     	Black=10     Strong:       	---       	Black=1} 1/2-1/2

[Event "Chinese Championship-B Men 2024"]
[Site "Liaocheng"]
[Date "2024.04.25"]
[Round "10.10"]
[White "Chen, Zhongkai"]
[Black "Xi, Qi"]
[Result "0-1"]
[ECO "C13"]
[WhiteElo "1832"]
[BlackElo "2217"]
[Annotator "TA"]
[PlyCount "102"]
[EventDate "2024.04.24"]
[EventType "swiss"]
[EventCountry "CHN"]
[SourceTitle "playchess.com"]
[Source "ChessBase"]
[SourceQuality "1"]
[TimeControl "5400+30"]

{[%evp 12,102,16,17,18,18,22,18,13,0,0,0,0,0,0,-8,0,-6,-8,-35,-29,-37,-25,-31,-36,-68,-66,-89,-54,-53,-28,-68,-60,-79,-47,-49,-32,-60,-47,-42,-29,-95,-80,-144,-152,-160,-138,-140,-106,-152,-143,-138,-154,-151,-151,-150,-147,-134,-162,-147,-127,-127,-124,-133,-156,-137,-137,-139,-131,-160,-160,-136,-127,-121,-110,-204,-212,-212,-212,-204,-204,-204,-211,-232,-185,-293,-286,-298,-283,-289,-269,-374,-286]} 1. e4 {[%emt 0:00:02]} e6 {[%emt 0:00:18]} 2. d4 {[%emt 0:00:54]} d5 {[%emt 0:00:06]} 3. Nc3 {[%emt 0:00:11]} Nf6 {[%emt 0:00:13]} 4. Bg5 {[%emt 0:00:04]} dxe4 {[%emt 0:00:21]} 5. Nxe4 {[%emt 0:00:05]} Nbd7 {[%emt 0:00:08]} 6. Nf3 {[%emt 0:00:12]} h6 {[%emt 0:00:09]} 7. Bxf6 {[%emt 0:00:13]} Nxf6 {[%emt 0:00:06]} 8. Bd3 {[%emt 0:00:09]} Nxe4 {[%emt 0:00:35]} 9. Bxe4 {[%emt 0:00:05]} c5 {[%emt 0:00:09] The position is equal.} 10. O-O {[%emt 0:00:54]} cxd4 {[%emt 0:02:03]} 11. Nxd4 {[%emt 0:01:18]} Be7 {[%emt 0:00:39]} 12. c3 {[%emt 0:00:43]} O-O {[%emt 0:00:23]} 13. Qb3 {[%emt 0:01:12]} Qc7 {[%emt 0:00:34]} 14. Rad1 {[%emt 0:00:36]} a6 {[%emt 0:00:40]} 15. a4 {[%emt 0:01:05]} Rb8 {[%emt 0:00:22]} 16. g3 {[%emt 0:03:01]} Bd7 {[%emt 0:00:27]} 17. Rfe1 {[%emt 0:00:04]} Rfc8 {[%emt 0:02:20]} 18. Nf3 {[%emt 0:00:50][%cal Of3e5]} Be8 {[%emt 0:00:53]} 19. Qc2 {[%emt 0:02:37][%cal Of3e5]} Qa5 {[%emt 0:01:36]} 20. Ra1 {[%emt 0:02:56]} Rc4 {[%emt 0:02:48]} 21. Bh7+ {[%emt 0:01:35]} Kf8 {[%emt 0:00:52][%cal Og7g6]} 22. Re5 {[%emt 0:00:05]} Qc7 {[%emt 0:00:54]} 23. Bd3 {[%emt 0:00:06]} Rc5 {[%emt 0:01:11]} 24. Rae1 {[%emt 0:03:01]} Rd8 {[%emt 0:01:42][%cal Oe8a4]} 25. Rxc5 Bxc5 {[%emt 0:04:15]} 26. b4 {[%emt 0:08:38]} (26. Rd1 $11 {remains equal.}) 26... Be7 {[%emt 0:04:00][%cal Oe8a4] And now ...Bxa4! would win.} 27. a5 {[%emt 0:04:29] [#]} (27. Be4 $142) 27... Ba4 $1 $17 {[%emt 0:09:01][%mdl 512]} 28. Qd2 {[%emt 0:10:59]} Bf6 {[%emt 0:10:40]} 29. c4 {[%emt 0:02:58]} Bc6 {[%emt 0:00:52] Black is more active. This pair of bishops is nice.} 30. Qe3 {[%emt 0:04:00]} (30. Re3 $142) 30... Qd6 {[%emt 0:01:37][%csl LRb4,LRd3]} 31. Be4 {[%emt 0:00:54]} Qxb4 {[%emt 0:00:28]} 32. Bxc6 bxc6 {[%emt 0:00:02]} 33. Qb6 {[%emt 0:01:30]} Qxc4 {[%emt 0:01:54] aiming for ...g5.} 34. Ne5 {[%emt 0:00:06]} Qc3 {[%emt 0:18:58][%csl LRe1,LRe5]} 35. Re3 {[%emt 0:00:01]} Rd1+ {[%emt 0:01:29]} 36. Kg2 {[%emt 0:00:02]} Qd4 {[%emt 0:01:13]} 37. Qxd4 {[%emt 0:10:59]} Rxd4 {[%emt 0:00:03]} 38. Nxc6 {[%emt 0:00:02][%cal Oe3b3][%mdl 4096] Endgame. Rb3! would now be deadly. KRB-KRN} Rd6 {[%emt 0:01:57]} 39. Nb4 {[%emt 0:01:20]} Ke8 {[%emt 0:01:32]} 40. Re4 {[%emt 0:00:29]} Bd8 {[%emt 0:01:40]} 41. Re5 {[%emt 0:00:08]} Kd7 {[%emt 0:00:31]} 42. Rc5 {[%emt 0:00:52]} Bf6 {[%emt 0:00:59]} 43. f4 {[%emt 0:01:43]} (43. h4 $17) 43... Rd2+ $19 {[%emt 0:01:31]} 44. Kf3 {[%emt 0:01:50]} Be7 {[%emt 0:00:46]} (44... Rxh2 45. Nxa6 Bd8 46. Nb8+ Kd6 47. Rc6+ Kd5 48. Rc8 Bxa5 49. Nc6 $11) 45. Rc4 {[%emt 0:00:01] [#]} Bxb4 {[%emt 0:00:55]} ({Don't take} 45... Rxh2 46. Nxa6 Ra2 47. Nc5+ Bxc5 48. Rxc5 $15) 46. Rxb4 {[%emt 0:00:01] [#] KR-KR} Ra2 $1 {[%emt 0:00:10]} ({But not} 46... Rxh2 47. Rb7+ Ke8 48. Ra7 $17) 47. Rb7+ {[%emt 0:00:06]} Ke8 {[%emt 0:00:04]} 48. Ke4 {[%emt 0:00:16]} (48. f5 $142) 48... Rxa5 {[%emt 0:00:13]} ({Not} 48... Rxh2 49. Rb6 $17) 49. Ra7 {[%emt 0:00:02]} h5 {[%emt 0:01:30]} 50. h3 {[%emt 0:00:33]} Kf8 {[%emt 0:06:22]} 51. g4 {[%emt 0:00:10]} g6 {[%emt 0:04:33] Weighted Error Value: White=0.18 (very precise) /Black=0.07 (flawless) .  Mistake:       	White=5     	---        Inaccurate:     	White=5     	Black=2      OK:         	White=13    	Black=18     Best:        	White=6     	Black=4      Brilliant:      	---       	Black=1} 0-1

[Event "Chinese Championship-B Men 2024"]
[Site "Liaocheng"]
[Date "2024.04.25"]
[Round "10.11"]
[White "Chen, Hongsen"]
[Black "Xia, Jinnan"]
[Result "0-1"]
[ECO "D54"]
[WhiteElo "2171"]
[BlackElo "1819"]
[Annotator "TA"]
[PlyCount "90"]
[EventDate "2024.04.24"]
[EventType "swiss"]
[EventCountry "CHN"]
[SourceTitle "playchess.com"]
[Source "ChessBase"]
[SourceQuality "1"]
[TimeControl "5400+30"]

{[%evp 11,90,18,23,20,25,30,30,9,31,31,27,20,26,26,34,8,33,8,50,11,54,31,28,25,24,35,39,39,28,38,42,25,45,39,60,56,56,37,34,0,79,75,66,66,97,54,64,55,52,63,69,66,60,28,42,19,90,84,120,81,69,73,100,42,71,46,78,46,54,17,16,29,18,22,140,129,162,135,118,-2808,-2557]} 1. c4 {[%emt 0:02:32]} Nf6 {[%emt 0:00:07]} 2. Nc3 {[%emt 0:00:07]} d5 {[%emt 0:01:09]} 3. d4 {[%emt 0:01:13]} e6 {[%emt 0:00:03]} 4. Bg5 {[%emt 0:00:08]} Be7 {[%emt 0:00:02]} 5. e3 {[%emt 0:00:34]} O-O {[%emt 0:00:11]} 6. Rc1 {[%emt 0:00:07]} b6 {[%emt 0:03:05]} 7. cxd5 {[%emt 0:00:09]} exd5 {[%emt 0:00:32]} 8. Bd3 {[%emt 0:02:10]} Bb7 {[%emt 0:00:17]} 9. h3 {[%emt 0:02:30] White has an edge.} Ne4 {[%emt 0:01:57]} 10. Bxe7 {[%emt 0:01:12]} Qxe7 {[%emt 0:00:05]} 11. Nge2 {[%emt 0:00:45]} Nd7 {[%emt 0:01:13]} 12. O-O {[%emt 0:00:22]} Ndf6 {[%emt 0:00:57]} 13. a3 {[%emt 0:03:46]} Rfc8 {[%emt 0:08:52]} 14. Nf4 {[%emt 0:03:30]} c5 {[%emt 0:06:42]} 15. dxc5 {[%emt 0:01:52]} Rxc5 {[%emt 0:00:51]} 16. Nb5 {[%emt 0:06:16]} a6 {[%emt 0:03:27]} 17. Nd4 {[%emt 0:02:22]} Rac8 {[%emt 0:01:11]} 18. Rc2 {[%emt 0:00:54]} g6 {[%emt 0:02:36]} 19. Qe2 {[%emt 0:01:30]} Rxc2 20. Bxc2 {[%emt 0:02:11]} b5 {[%emt 0:02:34]} 21. Ra1 {[%emt 0:06:01]} Nd7 {[%emt 0:03:47]} 22. a4 {[%emt 0:02:49]} b4 {[%emt 0:02:28]} 23. a5 {[%emt 0:08:53]} Ne5 {[%emt 0:00:30]} 24. Bb3 {[%emt 0:02:28]} Nc4 {[%emt 0:04:34]} 25. Nd3 {[%emt 0:04:54]} Ne5 {[%emt 0:11:16]} (25... Nc5 $1 $11 {remains equal.}) 26. Nxe5 $16 {[%emt 0:03:51]} Qxe5 {[%emt 0:00:02]} 27. Qe1 {[%emt 0:00:21]} Qd6 {[%emt 0:00:55]} 28. g3 {[%emt 0:03:02]} Rc7 {[%emt 0:04:20]} 29. h4 {[%emt 0:04:01]} Bc8 {[%emt 0:01:25]} 30. Bd1 {[%emt 0:00:18]} h5 {[%emt 0:02:06]} 31. Bf3 {[%emt 0:00:29]} (31. Be2 {keeps more tension.} Bh3 32. Kh2 Bd7 33. Kg2) 31... Qc5 {[%emt 0:03:04]} 32. Nb3 {[%emt 0:01:33]} (32. Be2 {is more complex.} Qd6 33. Kg2 Bd7 34. Rc1) 32... Qe7 {[%emt 0:02:17]} 33. Rc1 {[%emt 0:01:08]} Be6 {[%emt 0:07:48]} (33... Bg4 $11 34. Bg2 (34. Rxc7 Qxc7 35. Bxe4 dxe4 $11) 34... Rxc1 35. Qxc1 Qf6 36. Bxe4 dxe4) 34. Nd4 {[%emt 0:04:50] [#] aiming for Rxc7.} Bh3 {[%emt 0:02:56]} 35. Kh2 {[%emt 0:05:00]} Rxc1 {[%emt 0:07:39]} 36. Qxc1 {[%emt 0:00:05]} Bg4 {[%emt 0:00:43]} (36... Nxf2 $2 37. Qe1 (37. Bxd5 Bd7 $15) (37. Qd2 Ne4 $16) 37... Nd3 38. Qe2 $18) 37. Bxe4 {[%emt 0:07:17]} (37. Bxg4 $16 hxg4 38. Qc8+ Kg7 39. Qxa6 Nxf2 40. Qe2) 37... Qxe4 {[%emt 0:04:22][%mdl 4096] Endgame. KQB-KQN} 38. Qc2 {[%emt 0:00:05] Wards off Qd3} Bd7 {[%emt 0:03:06]} ({Wrong is} 38... Qxc2 $2 39. Nxc2 d4 40. Nxd4 $18 (40. Nxb4 dxe3 41. fxe3 Be2 $11) (40. exd4 b3 $18)) 39. Qxe4 {[%emt 0:08:33]} (39. b3 {is interesting.} Be6 40. Qd2 Bf5 41. Qxb4 Bh3 42. f3) 39... dxe4 {[%emt 0:00:02] KB-KN} 40. Nc2 {[%emt 0:00:22]} b3 {[%emt 0:01:36]} 41. Nd4 {[%emt 0:00:05]} Be6 {[%emt 0:02:23]} 42. Kg2 {[%emt 0:03:54] [#] And now Nxe6 would win.} Bc4 {[%emt 0:01:43]} (42... Bd5 $1 $11 {keeps the balance.}) 43. f3 {[%emt 0:00:22]} exf3+ {[%emt 0:02:49]} 44. Kxf3 {[%emt 0:00:12]} Kf8 {[%emt 0:00:08]} 45. Nc6 {[%emt 0:02:02][%mdl 8192]} (45. Ke4 $16) 45... Bd5+ {[%emt 0:00:07] Weighted Error Value: White=0.31/Black=0.21 (precise) .  Loses game:     	White=1     	---        Mistake:       	White=1     	Black=3      Inaccurate:     	White=8     	Black=6      OK:         	White=14    	Black=9      Best:        	---       	Black=2} 0-1

[Event "Chinese Championship-B Men 2024"]
[Site "Liaocheng"]
[Date "2024.04.25"]
[Round "10.12"]
[White "Wang, Hao B"]
[Black "Hong, Mingren"]
[Result "1/2-1/2"]
[ECO "D79"]
[WhiteElo "2170"]
[BlackElo "1747"]
[Annotator "TA"]
[PlyCount "92"]
[EventDate "2024.04.24"]
[EventType "swiss"]
[EventCountry "CHN"]
[SourceTitle "playchess.com"]
[Source "ChessBase"]
[SourceQuality "1"]
[TimeControl "5400+30"]

{[%evp 17,92,0,0,-13,38,39,43,50,60,16,42,21,31,-118,-122,-113,-115,-108,-20,-31,-26,-44,-66,-41,-79,-70,-56,-47,-45,-35,-49,-39,0,0,0,0,0,0,0,0,0,0,0,0,0,0,0,0,0,0,6,0,10,5,8,6,18,15,27,25,20,0,18,15,26,14,61,22,22,5,5,6,5,0,0,0,6]} 1. Nf3 {[%emt 0:00:04]} Nf6 {[%emt 0:00:06]} 2. g3 {[%emt 0:00:19]} g6 {[%emt 0:00:07]} 3. Bg2 {[%emt 0:00:06]} Bg7 {[%emt 0:00:03]} 4. O-O {[%emt 0:00:13]} O-O {[%emt 0:00:03]} 5. c4 {[%emt 0:01:00]} c6 {[%emt 0:00:04]} 6. d4 {[%emt 0:01:06]} d5 {[%emt 0:00:04]} 7. cxd5 {[%emt 0:00:14]} cxd5 {[%emt 0:00:03]} 8. Nc3 {[%emt 0:00:11]} Ne4 {[%emt 0:00:02]} 9. Qb3 {[%emt 0:01:24]} Nc6 {[%emt 0:00:04]} 10. Bf4 {[%emt 0:03:23]} (10. Nxd5 $2 Be6 (10... Bxd4 $2 11. Nxd4 Nxd4 12. Qc4 $18) 11. Nxe7+ Nxe7 12. Qxb7 Bd5 $19) 10... a5 {[%emt 0:04:12]} (10... Nxc3 $11 11. bxc3 Na5) 11. Rfd1 $14 {[%emt 0:02:39]} (11. Qxd5 $2 Nxc3 (11... Nxd4 $2 12. Qxe4 Nc6 13. Rad1 $18) 12. Qc4 Nd5 $19) (11. Nxd5 $2 a4 (11... Nxd4 $2 12. Nxd4 e5 13. Bxe4 $18) (11... Be6 $2 12. Nxe7+ Qxe7 13. Qa4 $19) 12. Nxe7+ Qxe7 $19) 11... Nxc3 {[%emt 0:00:20]} 12. bxc3 {[%emt 0:00:41] White is slightly better.} a4 {[%emt 0:00:05]} 13. Qa3 {[%emt 0:01:15]} Bf5 {[%emt 0:02:27]} 14. Ne5 {[%emt 0:00:51]} Qa5 {[%emt 0:05:59]} 15. c4 {[%emt 0:04:06]} (15. Rac1 $14 {stays ahead.}) 15... Nxe5 $17 {[%emt 0:04:38]} 16. dxe5 {[%emt 0:02:58]} dxc4 {[%emt 0:01:04]} 17. Rac1 {[%emt 0:00:41]} Rac8 {[%emt 0:03:37]} ({Much worse is} 17... Bxe5 $6 18. Rd5 (18. Bxb7 $2 Bxf4 19. gxf4 Rad8 $19) 18... Bxf4 19. Rxa5 Bxc1 20. Qxa4 Rxa5 21. Qxa5 $11) ({Better is} 17... Rad8 $17 {Hoping for ...Rxd1+.} 18. Bxb7 Rxd1+ (18... Bxe5 19. Bh6 $15) 19. Rxd1 Rb8 (19... Bxe5 $2 20. Bh6 $19)) 18. Bxb7 $11 {[%emt 0:00:30] [#] Strongly threatening Rd5.} Rc7 {[%emt 0:00:49]} 19. Bf3 {[%emt 0:11:02]} ({Avoid the trap} 19. Rd5 $2 Qb6 20. Qxa4 Qxb7 $19) 19... Be6 $1 {[%emt 0:01:09][%cal Of8c8] Prevents Rd5.} (19... Bxe5 $2 {loses.} 20. Rd5 $18) 20. Bd2 {[%emt 0:00:07]} Qxe5 {[%emt 0:05:54]} 21. Qxa4 {[%emt 0:01:03]} Rd7 {[%emt 0:03:59]} 22. Bc3 {[%emt 0:01:05]} Rxd1+ 23. Qxd1 {[%emt 0:00:05]} Qc5 {[%emt 0:03:14]} 24. Qd2 {[%emt 0:00:48]} Rc8 {[%emt 0:02:16]} 25. a4 {[%emt 0:01:53][%cal Ba2a4,Ba4a5,Ba5a6][%mdl 32]} Qa3 {[%emt 0:02:03]} 26. a5 {[%emt 0:01:00]} Bxc3 27. Qxc3 {[%emt 0:00:04]} Qxc3 28. Rxc3 {[%emt 0:00:07][%mdl 4096] Endgame. KRB-KRB} Rc5 {[%emt 0:06:18]} 29. a6 {[%emt 0:00:45]} Ra5 {[%emt 0:00:03]} 30. Bb7 {[%emt 0:00:05]} Kf8 {[%emt 0:00:18]} 31. Kg2 {[%emt 0:03:12]} Ke8 {[%emt 0:02:55]} 32. Kf3 {[%emt 0:00:05]} Kd7 {[%emt 0:00:39]} 33. Ke3 {[%emt 0:00:29]} Kc7 {[%emt 0:00:22]} 34. Kd4 {[%emt 0:01:08]} Kb6 {[%emt 0:00:21]} 35. Rc2 {[%emt 0:00:42]} Ra3 {[%emt 0:00:40]} 36. f4 {[%emt 0:01:33]} f6 {[%emt 0:01:25]} 37. Rb2+ {[%emt 0:00:06]} Rb3 {[%emt 0:03:08]} 38. Ra2 {[%emt 0:00:17] [#] White wants to mate with a7.} Ka7 {[%emt 0:00:29]} 39. Rd2 {[%emt 0:00:26]} Rb6 {[%emt 0:02:08]} 40. Kc5 {[%emt 0:00:27]} Rd6 {[%emt 0:01:10]} 41. Rb2 {[%emt 0:02:46]} h6 {[%emt 0:03:24]} (41... c3 $11 {deserves consideration.} 42. Rc2 Rd2 43. Rxc3 Rxe2) 42. Bc6 {[%emt 0:00:51]} Bc8 {[%emt 0:01:19] Wards off Rb7+. The position is equal.} 43. Bb5 {[%emt 0:04:12]} c3 {[%emt 0:00:51]} 44. Rc2 {[%emt 0:00:09]} Bxa6 {[%emt 0:00:17]} 45. Bxa6 {[%emt 0:00:52]} Kxa6 {[%emt 0:00:56]} 46. Rxc3 {[%emt 0:00:05] Re3 would now be deadly.} Kb7 {[%emt 0:00:58] Weighted Error Value: White=0.13 (very precise) /Black=0.11 (very precise) .  Mistake:       	White=1     	Black=3      Inaccurate:     	White=2     	Black=1      OK:         	White=14    	Black=17     Best:        	White=1     	Black=4      Strong:       	---       	Black=1} 1/2-1/2